bitfinex/quotes_BTCUSD_20250814
["timestamp","ask_amount","ask_price","bid_price","bid_amount"]
[1755175101603,0.39694183,119220.0,119210.0,0.58887868]
[1755175101838,0.39694183,119220.0,119210.0,0.42110752]
[1755175102076,0.39694183,119220.0,119210.0,0.58887868]
[1755175102721,0.39694183,119220.0,119210.0,0.42110752]
[1755175103153,0.39694183,119220.0,119210.0,0.92887868]
[1755175103591,0.39694183,119220.0,119210.0,0.76110752]
[1755175103804,0.39694183,119220.0,119210.0,0.92887868]
[1755175104259,0.39694183,119220.0,119210.0,0.78995868]
[1755175104471,0.39694183,119220.0,119210.0,0.60209215]
[1755175104711,0.39694183,119220.0,119210.0,1.11283331]
[1755175104931,0.39694183,119220.0,119210.0,2.52736729]
[1755175105156,0.39694183,119220.0,119210.0,0.78841707]
[1755175105363,0.39694183,119220.0,119210.0,1.13138707]
[1755175105612,0.39694183,119220.0,119210.0,0.60209215]
[1755175105841,0.39694183,119220.0,119210.0,1.32720931]
[1755175106059,0.39694183,119220.0,119210.0,1.66115404]
[1755175106268,0.39694183,119220.0,119210.0,1.37499636]
[1755175106484,0.39694183,119220.0,119210.0,1.39509709]
[1755175106696,1.39694183,119220.0,119210.0,1.37649104]
[1755175107562,1.39694183,119220.0,119210.0,1.30556731]
[1755175107788,0.96063503,119220.0,119210.0,1.32301633]
[1755175108010,0.96063503,119220.0,119210.0,1.38210671]
[1755175108011,0.6285682,119220.0,119210.0,1.38210671]
[1755175108221,0.6285682,119220.0,119210.0,1.36042408]
[1755175108222,0.5620882,119220.0,119210.0,1.36042408]
[1755175108453,0.5620882,119220.0,119210.0,1.32196278]
[1755175108673,0.5620882,119220.0,119210.0,1.3394118]
[1755175108892,0.15842336,119220.0,119210.0,1.37591956]
[1755175109113,0.002779,119240.0,119230.0,0.52519203]
[1755175109337,0.5,119260.0,119250.0,0.1851639]
[1755175109546,0.5,119260.0,119250.0,3.99678955]
[1755175109547,0.1595276,119260.0,119250.0,3.99678955]
[1755175109763,0.5,119300.0,119290.0,0.52510766]
[1755175109998,0.5,119300.0,119290.0,3.10363236]
[1755175110215,0.5,119300.0,119290.0,2.14846936]
[1755175110662,0.5,119300.0,119290.0,2.23119261]
[1755175111514,0.47509245,119300.0,119290.0,2.23119261]
[1755175111725,0.47509245,119300.0,119290.0,2.24310389]
[1755175111950,0.47509245,119300.0,119290.0,2.26311285]
[1755175112203,0.37509245,119300.0,119290.0,2.26311285]
[1755175112421,0.37509245,119300.0,119290.0,2.26729583]
[1755175112847,0.37509245,119300.0,119290.0,2.24947703]
[1755175113538,0.37509245,119300.0,119290.0,2.26882196]
[1755175113946,0.37509245,119300.0,119290.0,2.25034094]
[1755175114163,0.37383512,119300.0,119290.0,2.24526456]
[1755175114372,0.37383512,119300.0,119290.0,2.26959604]
[1755175114585,0.37383512,119300.0,119290.0,2.26770013]
[1755175114795,0.37383512,119300.0,119290.0,1.15162055]
[1755175115201,0.37383512,119300.0,119290.0,0.85639829]
[1755175115622,0.37383512,119300.0,119290.0,0.57656165]
[1755175115829,0.37383512,119300.0,119290.0,1.7727057]
[1755175116049,0.37383512,119300.0,119290.0,1.79312472]
[1755175116270,0.37383512,119300.0,119290.0,2.13312472]
[1755175116500,0.37383512,119300.0,119290.0,2.17680113]
[1755175116501,0.37447072,119300.0,119290.0,2.17680113]
[1755175117144,0.37447072,119300.0,119290.0,2.13312472]
[1755175117357,0.37447072,119300.0,119290.0,0.9932007]
[1755175117572,0.37447072,119300.0,119290.0,1.3701467]
[1755175117799,0.37447072,119300.0,119290.0,1.3600577]
[1755175118019,0.37447072,119300.0,119290.0,0.60161665]
[1755175118020,0.37765072,119300.0,119290.0,0.60161665]
[1755175118245,0.41541579,119300.0,119290.0,0.08272325]
[1755175118467,0.42379801,119300.0,119250.0,0.20092]
[1755175118680,0.00318,119290.0,119260.0,0.025147]
[1755175118898,0.00318,119290.0,119250.0,0.20092]
[1755175119112,0.00318,119290.0,119250.0,0.4940083]
[1755175119317,0.00318,119290.0,119260.0,0.08272325]
[1755175119569,0.0006356,119290.0,119260.0,0.15228451]
[1755175119816,0.00318,119280.0,119260.0,0.15438077]
[1755175120042,0.0006356,119290.0,119270.0,0.91692406]
[1755175120258,0.0006356,119290.0,119280.0,0.0041918]
[1755175120480,0.0038156,119290.0,119280.0,0.08272325]
[1755175121792,0.0006356,119290.0,119280.0,0.08691505]
[1755175122012,0.0006356,119290.0,119280.0,0.59458775]
[1755175122222,0.0006356,119290.0,119280.0,0.08272325]
[1755175122436,0.0038156,119290.0,119280.0,0.08272325]
[1755175122863,0.0006356,119290.0,119280.0,0.08481915]
[1755175123074,0.0006356,119290.0,119280.0,0.64055505]
[1755175123290,0.0006356,119290.0,119280.0,0.59039595]
[1755175123515,0.0006356,119290.0,119280.0,1.31228895]
[1755175123734,0.0006356,119290.0,119280.0,1.30060453]
[1755175124159,0.0006356,119290.0,119280.0,0.62805251]
[1755175124371,0.0006356,119290.0,119280.0,0.72660895]
[1755175124590,0.0006356,119290.0,119280.0,0.79407395]
[1755175125020,0.37383512,119300.0,119280.0,0.77334895]
[1755175125021,0.27447072,119300.0,119280.0,0.77334895]
[1755175125229,0.27447072,119300.0,119290.0,0.25038189]
[1755175125442,0.27447072,119300.0,119290.0,0.73419479]
[1755175125651,0.27447072,119300.0,119290.0,0.47685915]
[1755175125924,0.27409662,119300.0,119290.0,0.37562515]
[1755175126623,0.27727662,119300.0,119290.0,0.37562515]
[1755175126845,0.27727662,119300.0,119290.0,0.08272325]
[1755175127067,0.27727662,119300.0,119260.0,0.293018]
[1755175127068,0.3133865,119300.0,119260.0,0.293018]
[1755175127288,0.00318,119290.0,119260.0,0.08272325]
[1755175127529,0.17083929,119290.0,119260.0,0.08272325]
[1755175127747,0.00838433,119270.0,119230.0,0.20088]
[1755175127958,0.00838433,119270.0,119230.0,0.08272325]
[1755175127959,0.17926658,119260.0,119230.0,0.08272325]
[1755175128175,0.00318,119250.0,119230.0,0.08272325]
[1755175128417,0.00318,119240.0,119230.0,0.08272325]
[1755175128632,0.00318,119240.0,119210.0,0.025158]
[1755175128848,0.00318,119240.0,119190.0,0.10448]
[1755175129061,0.00318,119230.0,119200.0,0.00419462]
[1755175129272,0.00318,119230.0,119200.0,0.02935562]
[1755175129489,0.00318,119220.0,119190.0,0.47317922]
[1755175129719,0.16769211,119270.0,119200.0,0.17954487]
[1755175129943,0.00318,119250.0,119200.0,0.17535025]
[1755175130167,0.00318,119240.0,119210.0,0.5]
[1755175130392,0.00318,119230.0,119200.0,0.37588895]
[1755175130623,0.00838433,119270.0,119200.0,0.57722036]
[1755175130849,0.00318,119250.0,119200.0,0.56882945]
[1755175131066,0.00318,119240.0,119200.0,0.40104795]
[1755175131322,0.00318,119230.0,119200.0,0.40104795]
[1755175131549,0.00318,119230.0,119200.0,0.08272325]
[1755175132005,0.00318,119220.0,119200.0,0.08272325]
[1755175132501,0.50318,119280.0,119220.0,0.34]
[1755175132730,0.553498,119280.0,119210.0,0.17908747]
[1755175132955,0.00318,119270.0,119220.0,0.7931013]
[1755175133188,0.17608663,119260.0,119220.0,0.2931013]
[1755175133418,0.17610302,119250.0,119210.0,0.293185]
[1755175133644,0.00318,119240.0,119210.0,0.293185]
[1755175133878,0.17091084,119240.0,119210.0,0.08272325]
[1755175134106,0.00318,119230.0,119210.0,0.08272325]
[1755175134327,0.24356718,119250.0,119210.0,0.08272325]
[1755175134553,0.07585074,119250.0,119210.0,0.37589435]
[1755175134783,0.067465,119250.0,119210.0,0.37589435]
[1755175135034,0.067465,119250.0,119220.0,0.08272325]
[1755175135246,0.17609276,119260.0,119220.0,0.08272325]
[1755175135467,0.25881601,119260.0,119220.0,0.08272325]
[1755175135684,0.17608679,119260.0,119220.0,0.37590015]
[1755175135939,0.17610066,119250.0,119220.0,0.08272325]
[1755175136122,0.067465,119250.0,119220.0,0.08272325]
[1755175136394,0.00318,119240.0,119220.0,0.08272325]
[1755175137094,0.00318,119230.0,119220.0,0.08272325]
[1755175137318,0.17931016,119230.0,119190.0,0.598578]
[1755175137534,0.00318,119220.0,119200.0,0.08272325]
[1755175138542,0.16772735,119250.0,119200.0,0.42272325]
[1755175138753,0.00838644,119240.0,119200.0,0.42272325]
[1755175138962,0.17611659,119240.0,119200.0,0.42272325]
[1755175139389,0.25883634,119250.0,119200.0,0.4408095]
[1755175139820,0.17612087,119260.0,119200.0,0.4437495]
[1755175140043,0.17610219,119250.0,119200.0,0.42566325]
[1755175140252,0.067465,119250.0,119200.0,0.08566325]
[1755175140466,0.7105981,119280.0,119210.0,0.50713426]
[1755175140678,0.16771837,119250.0,119210.0,0.2931033]
[1755175140895,0.16771837,119250.0,119200.0,0.08272325]
[1755175140896,0.17614382,119230.0,119200.0,0.08272325]
[1755175141138,0.50226,119240.0,119200.0,0.08272325]
[1755175141362,0.5,119240.0,119220.0,0.34]
[1755175141574,0.5,119240.0,119230.0,0.34294]
[1755175141789,0.5,119240.0,119230.0,0.00294]
[1755175142011,0.5,119240.0,119230.0,0.00419356]
[1755175142263,0.5,119240.0,119210.0,0.00294]
[1755175142528,0.5,119240.0,119200.0,0.37580275]
[1755175142791,0.5,119240.0,119220.0,0.08272325]
[1755175143023,0.5,119240.0,119220.0,0.37586965]
[1755175143756,0.50226,119240.0,119220.0,0.08272325]
[1755175143969,0.50226,119240.0,119190.0,0.20386]
[1755175143970,0.67837864,119240.0,119190.0,0.4970382]
[1755175144178,0.67837619,119240.0,119200.0,0.08272325]
[1755175144393,0.5,119240.0,119220.0,0.16775707]
[1755175144655,0.5,119240.0,119230.0,0.08482003]
[1755175144879,0.5,119240.0,119230.0,0.08985681]
[1755175145074,0.5,119240.0,119230.0,0.08482003]
[1755175145330,0.5,119240.0,119230.0,0.08272325]
[1755175145796,0.68328539,119240.0,119200.0,0.2931483]
[1755175146026,0.68328709,119240.0,119210.0,0.08272325]
[1755175146275,0.68328612,119240.0,119210.0,0.08272325]
[1755175146517,0.50491,119240.0,119210.0,0.08272325]
[1755175146746,0.50491,119240.0,119210.0,0.08482038]
[1755175146956,0.68328704,119240.0,119210.0,0.08272325]
[1755175147180,0.50491,119240.0,119220.0,0.00209696]
[1755175147398,0.50491,119240.0,119230.0,0.08272325]
[1755175147856,0.50491,119240.0,119230.0,0.25562304]
[1755175148073,0.50491,119240.0,119230.0,0.63527038]
[1755175148286,0.50491,119240.0,119230.0,0.12816591]
[1755175148501,0.50491,119240.0,119230.0,0.10970125]
[1755175148924,0.50491,119240.0,119230.0,0.10664125]
[1755175149138,0.555401,119240.0,119230.0,0.025158]
[1755175149356,0.50491,119240.0,119230.0,0.08272325]
[1755175149786,0.68328553,119240.0,119200.0,0.0001]
[1755175150000,0.50491,119240.0,119210.0,0.08272325]
[1755175150221,0.50491,119240.0,119210.0,0.37591025]
[1755175150680,0.08272325,119230.0,119210.0,0.293187]
[1755175150893,0.08272325,119230.0,119200.0,0.02526]
[1755175150894,0.67263904,119240.0,119200.0,0.02526]
[1755175151113,0.50491,119240.0,119200.0,0.02735731]
[1755175151392,0.16774305,119230.0,119200.0,0.02526]
[1755175151609,0.16774305,119230.0,119200.0,0.10798325]
[1755175151610,0.00226,119230.0,119200.0,0.10798325]
[1755175151829,0.17000309,119230.0,119200.0,0.10798325]
[1755175152059,0.00226,119230.0,119200.0,0.08282325]
[1755175152482,0.50491,119240.0,119200.0,0.08282325]
[1755175152660,0.50491,119240.0,119210.0,0.08272325]
[1755175153129,0.67263921,119240.0,119210.0,0.08272325]
[1755175153339,0.00226,119230.0,119210.0,0.08272325]
[1755175153553,0.50717,119240.0,119210.0,0.08272325]
[1755175153982,0.50491,119240.0,119220.0,0.067465]
[1755175154453,0.50365204,119240.0,119210.0,0.08272325]
[1755175154874,0.50591204,119240.0,119210.0,0.08255825]
[1755175155102,0.50591204,119240.0,119220.0,0.067465]
[1755175155310,0.50365204,119240.0,119220.0,0.08272325]
[1755175156612,0.50365204,119240.0,119200.0,0.0001]
[1755175156613,0.68202788,119240.0,119200.0,0.0001]
[1755175156825,0.17839211,119230.0,119200.0,0.0001]
[1755175157263,0.17001791,119220.0,119200.0,0.0001]
[1755175157479,0.17003116,119210.0,119200.0,0.0001]
[1755175157905,0.25275441,119210.0,119200.0,0.0001]
[1755175158396,0.29093426,119210.0,119200.0,0.0001]
[1755175158820,0.33680348,119210.0,119200.0,0.0001]
[1755175159477,0.67680348,119210.0,119200.0,0.0001]
[1755175159889,0.63093426,119210.0,119200.0,0.0001]
[1755175160329,0.62867426,119210.0,119200.0,0.0001]
[1755175160549,0.16775791,119220.0,119200.0,0.0001]
[1755175160758,0.16777116,119210.0,119200.0,0.0001]
[1755175161433,0.00838715,119230.0,119200.0,0.0001]
[1755175161648,0.17613671,119230.0,119200.0,0.0001]
[1755175161880,0.17613056,119230.0,119200.0,0.08588325]
[1755175162097,0.17613028,119230.0,119200.0,0.08588325]
[1755175162319,0.67976788,119240.0,119200.0,0.08588325]
[1755175162773,0.17613017,119230.0,119200.0,0.0001]
[1755175163219,0.84723556,119240.0,119200.0,0.08282325]
[1755175163220,0.76249113,119240.0,119200.0,0.08282325]
[1755175163437,0.17613084,119230.0,119200.0,0.0001]
[1755175163656,0.16777116,119210.0,119200.0,0.0001]
[1755175164343,0.17001841,119220.0,119200.0,0.0001]
[1755175164760,0.20237208,119220.0,119200.0,0.0001]
[1755175164977,0.17613084,119230.0,119200.0,0.0001]
[1755175165187,0.1761335,119230.0,119200.0,0.00316]
[1755175165432,0.800593,119240.0,119200.0,0.00316]
[1755175165673,0.6797787,119240.0,119210.0,0.00306]
[1755175165892,0.50365204,119240.0,119210.0,0.00306]
[1755175166108,0.51203848,119240.0,119210.0,0.00306]
[1755175166327,0.67138268,119240.0,119210.0,0.08578325]
[1755175166534,0.50365204,119240.0,119210.0,0.08578325]
[1755175166791,0.50365204,119240.0,119220.0,0.08578325]
[1755175167006,0.50365204,119240.0,119230.0,0.00306]
[1755175167459,0.50365204,119240.0,119230.0,0.08578325]
[1755175167694,0.50365204,119240.0,119230.0,0.08788003]
[1755175168499,0.50365204,119240.0,119230.0,0.08578325]
[1755175169647,0.50365204,119240.0,119230.0,0.37893145]
[1755175169865,0.50365204,119240.0,119230.0,0.11093925]
[1755175170081,0.50365204,119240.0,119210.0,0.296206]
[1755175170299,0.50365204,119240.0,119220.0,0.00306]
[1755175170730,0.50365204,119240.0,119230.0,0.00306]
[1755175170940,0.50365204,119240.0,119230.0,0.37892025]
[1755175171151,0.50365204,119240.0,119230.0,0.08272325]
[1755175174225,0.50239408,119240.0,119230.0,0.08272325]
[1755175174723,0.50239408,119240.0,119200.0,0.20114]
[1755175174724,0.67850947,119240.0,119200.0,0.20114]
[1755175174935,0.16777116,119210.0,119200.0,0.0001]
[1755175175354,0.16775773,119220.0,119200.0,0.0001]
[1755175176293,0.16775763,119220.0,119200.0,0.0001]
[1755175176718,0.17613088,119230.0,119200.0,0.0001]
[1755175176925,0.17613088,119230.0,119200.0,0.08605325]
[1755175176926,0.16775834,119220.0,119200.0,0.08605325]
[1755175177143,0.16777116,119210.0,119200.0,0.0001]
[1755175177357,0.01988453,119210.0,119200.0,0.0001]
[1755175177562,0.18765569,119210.0,119200.0,0.0001]
[1755175178005,0.16775834,119220.0,119200.0,0.0001]
[1755175178610,0.16777116,119210.0,119200.0,0.0001]
[1755175179702,0.16775834,119220.0,119200.0,0.0001]
[1755175179917,0.16775734,119220.0,119200.0,0.0001]
[1755175180130,0.16777116,119210.0,119200.0,0.0001]
[1755175180775,0.20132401,119210.0,119200.0,0.0001]
[1755175181010,0.28630726,119210.0,119200.0,0.0001]
[1755175181220,0.62630726,119210.0,119200.0,0.0001]
[1755175181433,0.62630726,119210.0,119200.0,1e-08]
[1755175181864,0.62630726,119210.0,119160.0,0.071053]
[1755175181865,0.50782747,119170.0,119160.0,1e-08]
[1755175182120,0.16788382,119130.0,119120.0,0.025181]
[1755175182335,0.16791598,119110.0,119100.0,0.067465]
[1755175182539,0.25900126,119130.0,119100.0,0.067465]
[1755175182751,0.16789831,119120.0,119100.0,0.067465]
[1755175182975,0.16792611,119100.0,119090.0,0.20108]
[1755175183232,0.26127645,119120.0,119090.0,0.20108]
[1755175183454,0.18807832,119110.0,119090.0,0.268545]
[1755175183635,0.25901645,119120.0,119090.0,0.268545]
[1755175183883,0.16791255,119110.0,119090.0,0.268545]
[1755175184106,0.17629394,119120.0,119100.0,0.08272325]
[1755175184315,0.16792611,119100.0,119090.0,0.35445825]
[1755175184532,0.16792611,119100.0,119090.0,0.20108]
[1755175184970,0.16794021,119090.0,119080.0,0.0004]
[1755175185182,0.08498325,119090.0,119080.0,0.0004]
[1755175185611,0.09348157,119090.0,119080.0,0.0004]
[1755175185822,0.42498325,119090.0,119080.0,0.0004]
[1755175186034,0.4617946,119090.0,119080.0,0.0004]
[1755175186243,0.4867946,119090.0,119080.0,0.0004]
[1755175186454,0.1467946,119090.0,119080.0,0.0004]
[1755175186666,0.18746633,119090.0,119080.0,0.0004]
[1755175186877,0.4867946,119090.0,119080.0,0.0004]
[1755175187098,0.025,119080.0,119070.0,0.0004]
[1755175187544,0.025,119080.0,119050.0,0.1]
[1755175187545,0.025,119060.0,119050.0,0.1]
[1755175188177,0.47368552,119060.0,119050.0,0.1]
[1755175188402,0.44772325,119060.0,119050.0,0.1]
[1755175188873,0.47425625,119060.0,119050.0,0.1]
[1755175189077,0.42272325,119060.0,119050.0,0.1]
[1755175189499,0.00889771,119080.0,119050.0,0.1]
[1755175189763,0.08272325,119070.0,119050.0,0.1]
[1755175190186,0.42272325,119070.0,119050.0,0.1]
[1755175190605,0.0005,119080.0,119060.0,0.00323]
[1755175190812,0.0005,119080.0,119050.0,0.1]
[1755175190813,0.0005,119080.0,119070.0,0.00323]
[1755175191273,0.0005,119080.0,119050.0,0.1]
[1755175191478,0.08322325,119080.0,119050.0,0.10323]
[1755175191684,0.12554558,119080.0,119050.0,0.10323]
[1755175191894,0.08272325,119070.0,119050.0,0.1]
[1755175192101,0.0005,119080.0,119050.0,0.1]
[1755175192335,0.08272325,119070.0,119050.0,0.1]
[1755175192546,0.08272325,119070.0,119050.0,0.09160654]
[1755175192547,0.025,119060.0,119050.0,0.09160654]
[1755175192753,0.08272325,119070.0,119050.0,0.09160654]
[1755175192966,0.42272325,119060.0,119050.0,0.09160654]
[1755175193381,0.42272325,119060.0,119050.0,0.08321308]
[1755175193589,0.44772325,119060.0,119050.0,0.08321308]
[1755175193805,0.44772325,119060.0,119050.0,0.07481962]
[1755175194016,0.44772325,119060.0,119050.0,0.05801962]
[1755175194230,0.49481795,119060.0,119050.0,0.04962616]
[1755175194447,0.49481795,119060.0,119050.0,0.02024902]
[1755175194624,0.51981795,119060.0,119050.0,0.01098475]
[1755175194911,0.025,119030.0,118990.0,0.0228244]
[1755175195129,0.365,119050.0,118990.0,0.0228244]
[1755175195130,0.08272325,119020.0,118990.0,0.0228244]
[1755175195343,0.34,119050.0,119000.0,0.00323]
[1755175195344,0.41448179,119050.0,119000.0,0.00323]
[1755175195556,0.41448179,119050.0,119000.0,0.070695]
[1755175195557,0.34,119030.0,119000.0,0.070695]
[1755175195764,0.08272325,119020.0,119000.0,0.00323]
[1755175195971,0.34,119030.0,119000.0,0.00323]
[1755175196213,0.08272325,119030.0,119010.0,0.00323]
[1755175196658,0.08272325,119020.0,118990.0,0.0260544]
[1755175196864,0.08272325,119020.0,118990.0,0.0228244]
[1755175197286,0.14457135,119020.0,118990.0,0.0228244]
[1755175197744,0.08272325,119000.0,118990.0,0.01442833]
[1755175197970,0.10772325,119000.0,118990.0,0.01442833]
[1755175198182,0.15522615,119000.0,118990.0,0.00603226]
[1755175198389,0.10772325,119000.0,118990.0,0.00603226]
[1755175198599,0.08272325,119000.0,118990.0,0.00603226]
[1755175200903,0.0368481,119020.0,118990.0,0.00926226]
[1755175201142,0.0368481,119020.0,119000.0,0.00323]
[1755175201143,0.11957135,119020.0,119000.0,0.00323]
[1755175201386,0.01082232,119070.0,118990.0,0.08875551]
[1755175201387,0.025,119060.0,118990.0,0.08875551]
[1755175201599,0.08272325,119050.0,118990.0,0.08875551]
[1755175201812,0.10772325,119040.0,118990.0,0.00926226]
[1755175202030,0.42272325,119030.0,118990.0,0.00926226]
[1755175202263,0.42272325,119030.0,119000.0,0.00323]
[1755175202474,0.46749558,119030.0,119000.0,0.00323]
[1755175202744,0.46749558,119030.0,118990.0,0.00603226]
[1755175202968,0.10772325,119010.0,118990.0,0.00603226]
[1755175203189,0.3405,119000.0,118990.0,0.00603226]
[1755175203632,0.3405,119000.0,118950.0,0.0084416]
[1755175203853,0.40415868,119000.0,118950.0,0.0084416]
[1755175204085,0.34,118980.0,118950.0,0.0084416]
[1755175204319,0.08272325,118970.0,118950.0,0.0084416]
[1755175204749,0.08272325,118970.0,118960.0,0.00323]
[1755175205179,0.03915868,119000.0,118960.0,0.00323]
[1755175205421,0.08272325,118990.0,118960.0,0.00323]
[1755175205637,0.04557455,119000.0,118970.0,0.00323]
[1755175205638,0.14213085,119000.0,118970.0,0.00323]
[1755175205849,0.0005,119000.0,118970.0,0.00323]
[1755175206073,0.0005,119000.0,118970.0,0.12213]
[1755175206289,0.0005,119000.0,118980.0,0.00323]
[1755175206754,0.03817022,119040.0,118990.0,0.11791]
[1755175206976,0.03582232,119070.0,119000.0,0.00302]
[1755175207186,0.03830285,119050.0,119000.0,0.00302]
[1755175207392,0.08272325,119050.0,119000.0,0.10310594]
[1755175207608,0.08272325,119050.0,119010.0,0.10310594]
[1755175207609,0.025,119040.0,119010.0,0.10310594]
[1755175207870,0.025,119030.0,119010.0,0.08272325]
[1755175208088,0.025,119040.0,118980.0,0.2045]
[1755175208324,0.025,119020.0,118980.0,0.2045]
[1755175208543,0.025,119040.0,118980.0,0.2045]
[1755175208759,0.365,119020.0,118980.0,0.28420325]
[1755175208964,0.025,119000.0,118950.0,0.0759066]
[1755175209168,0.365,118990.0,118960.0,0.08574325]
[1755175209375,0.365,118990.0,118950.0,0.0759066]
[1755175209790,0.025,118990.0,118950.0,0.0789266]
[1755175210010,0.08272325,118980.0,118950.0,0.0789266]
[1755175210222,0.08272325,118980.0,118970.0,0.067465]
[1755175210434,0.08272325,118980.0,118970.0,0.070485]
[1755175210646,0.02338038,119030.0,118970.0,0.070485]
[1755175210857,0.02083833,119060.0,118970.0,0.070485]
[1755175210858,0.08272325,119020.0,118980.0,0.00302]
[1755175211061,0.09099558,119020.0,118980.0,0.08272325]
[1755175211268,0.00827233,119020.0,118990.0,0.00302]
[1755175211481,0.00587723,119040.0,118990.0,0.08574325]
[1755175211691,0.08272325,119030.0,118990.0,0.00302]
[1755175212116,0.34,119020.0,118970.0,0.070485]
[1755175212318,0.08272325,119010.0,118970.0,0.070485]
[1755175212508,0.08272325,119010.0,118980.0,0.00302]
[1755175212754,0.12733361,119010.0,118980.0,0.00302]
[1755175212980,0.08272325,119010.0,118990.0,0.00302]
[1755175213202,0.00587723,119040.0,119000.0,0.00302]
[1755175213409,0.00587723,119040.0,119000.0,0.08272325]
[1755175213410,0.08860048,119040.0,119000.0,0.08272325]
[1755175213625,0.08860048,119040.0,119010.0,0.00302]
[1755175214051,0.42860048,119040.0,119010.0,0.00302]
[1755175214267,0.4273404,119040.0,119010.0,0.00302]
[1755175214480,0.42272325,119030.0,118990.0,0.00302]
[1755175214716,0.49945729,119030.0,118990.0,0.08272325]
[1755175214938,0.49945729,119030.0,119000.0,0.00302]
[1755175215164,0.00461715,119040.0,119010.0,0.00302]
[1755175215442,0.1,119050.0,119020.0,0.00161962]
[1755175215648,0.1,119050.0,119040.0,0.00161962]
[1755175215866,0.00591,119070.0,119060.0,0.00161962]
[1755175216093,0.00591,119070.0,119060.0,0.00463962]
[1755175216307,0.00591,119070.0,119060.0,0.08736287]
[1755175216723,0.00591,119070.0,119060.0,0.08946265]
[1755175216933,0.00591,119070.0,119060.0,0.50090975]
[1755175217146,0.1,119080.0,119070.0,0.00161962]
[1755175217362,0.09984,119080.0,119070.0,0.08854207]
[1755175217566,0.09984,119080.0,119070.0,0.20734247]
[1755175217782,0.09984,119080.0,119070.0,0.48729687]
[1755175217994,0.09984,119080.0,119070.0,0.35931687]
[1755175218409,0.09984,119080.0,119070.0,0.20524287]
[1755175219039,0.09984,119080.0,119070.0,0.54524287]
[1755175219280,0.09984,119080.0,119070.0,0.57024287]
[1755175219495,0.09984,119080.0,119070.0,0.20524287]
[1755175219702,0.09984,119080.0,119070.0,0.08733287]
[1755175219918,0.09984,119080.0,119070.0,0.09153207]
[1755175220129,0.09984,119080.0,119070.0,0.08733287]
[1755175220759,0.09984,119080.0,119070.0,0.50293477]
[1755175220960,0.09984,119080.0,119070.0,1.18924357]
[1755175221601,0.08453675,119080.0,119070.0,1.21424357]
[1755175221824,0.00492,119110.0,119100.0,0.00161962]
[1755175222046,0.00492,119110.0,119100.0,4.03694618]
[1755175222047,0.00328214,119110.0,119100.0,4.03694618]
[1755175222266,0.00158485,119110.0,119100.0,4.18061709]
[1755175222480,0.00132485,119110.0,119100.0,4.18061709]
[1755175222694,0.5,119160.0,119150.0,0.00161962]
[1755175222905,0.5,119160.0,119150.0,0.63792762]
[1755175223146,0.5,119160.0,119150.0,0.38065087]
[1755175223560,0.5,119160.0,119150.0,0.40582187]
[1755175224609,0.5,119160.0,119150.0,0.11253387]
[1755175224826,0.5,119160.0,119150.0,0.40689983]
[1755175225039,0.5,119160.0,119150.0,0.40585127]
[1755175225910,0.5,119160.0,119150.0,0.65749127]
[1755175226122,0.45582171,119160.0,119150.0,1.14040127]
[1755175226332,0.22749171,119160.0,119150.0,1.57036444]
[1755175226536,0.22749171,119160.0,119150.0,1.59101427]
[1755175226975,0.22749171,119160.0,119150.0,1.56601427]
[1755175227188,0.21941585,119160.0,119150.0,1.59101427]
[1755175227607,0.21941585,119160.0,119150.0,1.31437427]
[1755175227807,0.21941585,119160.0,119150.0,1.56597427]
[1755175228263,0.21941585,119160.0,119150.0,1.04144627]
[1755175228473,0.21941585,119160.0,119150.0,1.02247527]
[1755175228605,0.21941585,119160.0,119150.0,1.01711227]
[1755175228815,0.21941585,119160.0,119150.0,0.93432427]
[1755175229063,0.21941585,119160.0,119150.0,1.44217991]
[1755175229372,0.21941585,119160.0,119150.0,0.84751127]
[1755175229558,0.21941585,119160.0,119150.0,1.09911127]
[1755175229774,0.21941585,119160.0,119150.0,1.85874491]
[1755175230515,0.21941585,119160.0,119150.0,1.60714491]
[1755175230722,0.21941585,119160.0,119150.0,1.85874491]
[1755175231520,0.21941585,119160.0,119150.0,1.56044891]
[1755175231721,0.21941585,119160.0,119150.0,1.56039891]
[1755175231854,0.21941585,119160.0,119150.0,1.53539891]
[1755175232261,0.21941585,119160.0,119150.0,1.56039891]
[1755175232462,0.21941585,119160.0,119150.0,1.58283298]
[1755175232668,1e-08,119160.0,119150.0,1.58115935]
[1755175232876,0.0002,119210.0,119200.0,0.16940485]
[1755175233121,0.0002,119210.0,119200.0,0.94019425]
[1755175233336,0.0002,119210.0,119200.0,2.4727135]
[1755175233529,0.0002,119210.0,119200.0,2.8377135]
[1755175233803,0.0002,119210.0,119200.0,2.5019885]
[1755175234010,0.0002,119210.0,119200.0,2.5269885]
[1755175234222,0.49748408,119240.0,119210.0,0.00838855]
[1755175234425,0.49748408,119240.0,119230.0,0.61708588]
[1755175234642,0.49748408,119240.0,119230.0,1.89644948]
[1755175234850,0.07061028,119240.0,119230.0,1.89644948]
[1755175235057,1e-08,119240.0,119230.0,1.91720992]
[1755175235184,0.0094345,119250.0,119240.0,0.21934857]
[1755175235185,1e-08,119250.0,119240.0,0.21934857]
[1755175235582,1e-08,119250.0,119240.0,3.40639174]
[1755175235767,1e-08,119250.0,119240.0,3.17567218]
[1755175235904,1e-08,119250.0,119240.0,1.33940357]
[1755175236425,1e-08,119250.0,119240.0,1.44712682]
[1755175236625,0.40565406,119260.0,119250.0,0.2193345]
[1755175236842,0.40565406,119260.0,119250.0,1.19694025]
[1755175237489,0.40565406,119260.0,119250.0,1.17194025]
[1755175237675,0.40565406,119260.0,119250.0,1.22207925]
[1755175238237,0.40565406,119260.0,119250.0,1.03648025]
[1755175238649,0.40565406,119260.0,119250.0,0.32513188]
[1755175238876,0.40565406,119260.0,119250.0,0.32221946]
[1755175239075,0.40565406,119260.0,119250.0,0.53285688]
[1755175239497,0.40565406,119260.0,119250.0,2.18069438]
[1755175239679,0.40565406,119260.0,119250.0,1.57131563]
[1755175239880,0.40565406,119260.0,119250.0,1.55458713]
[1755175240113,0.40565406,119260.0,119250.0,1.59922424]
[1755175240679,1e-08,119260.0,119250.0,2.59922424]
[1755175240884,1e-08,119260.0,119250.0,2.59923895]
[1755175241095,1e-08,119260.0,119250.0,1.59923895]
[1755175241292,1e-08,119260.0,119250.0,1.55347851]
[1755175241492,1e-08,119260.0,119250.0,1.14403895]
[1755175241693,1e-08,119260.0,119250.0,0.92791773]
[1755175242124,1e-08,119260.0,119250.0,1.26791773]
[1755175242412,1e-08,119260.0,119250.0,0.97493913]